[Event "5th Sharjah Masters 2022"]
[Site "Sharjah"]
[Date "2022.05.23"]
[Round "3.33"]
[White "Zawadzka, Jolanta"]
[Black "Sanal, Vahap"]
[Result "1/2-1/2"]
[ECO "B66"]
[WhiteElo "2409"]
[BlackElo "2575"]
[Annotator "TA"]
[PlyCount "88"]
[EventDate "2022.05.21"]
[EventType "swiss"]
[EventCountry "UAE"]
[SourceTitle "playchess.com"]
[Source "ChessBase"]
[SourceQuality "1"]
[TimeControl "5400+30"]

{[%evp 13,88,25,37,21,15,0,41,40,41,50,53,51,56,64,63,50,97,100,99,110,92,97,120,116,109,96,108,115,118,115,124,97,129,125,123,122,122,127,114,108,95,95,125,97,93,99,88,81,119,131,142,129,128,117,101,28,89,81,81,81,81,81,81,81,81,81,81,81,81,81,81,81,81,0,0,0,0]} 1. e4 {[%emt 0:00:03]} c5 {[%emt 0:00:07]} 2. Nf3 {[%emt 0:00:04]} Nc6 {[%emt 0:00:07]} 3. d4 {[%emt 0:00:04]} cxd4 {[%emt 0:00:06]} 4. Nxd4 {[%emt 0:00:03]} Nf6 {[%emt 0:00:07]} 5. Nc3 {[%emt 0:00:04]} d6 {[%emt 0:00:05]} 6. Bg5 {[%emt 0:00:15]} e6 {[%emt 0:00:12]} 7. Qd2 {[%emt 0:00:08]} a6 {[%emt 0:00:33]} 8. Nxc6 {[%emt 0:00:19] B66: Sicilian: Richter-Rauzer: 7...a6 8 0-0-0 h6.} bxc6 {[%emt 0:00:07]} 9. O-O-O {[%emt 0:00:07][%cal Oe4e5] Black must now prevent e5!} d5 {[%emt 0:02:45]} (9... h6 $5 {[%cal Rh6g5]} 10. Bf4 d5 $14) 10. Qe3 {[%emt 0:00:18] White is slightly better.} Be7 {[%emt 0:00:52] Hoping for ...Ng4.} 11. Bxf6 {[%emt 0:00:25]} gxf6 {[%emt 0:00:19]} 12. Bc4 $1 {[%emt 0:00:25][%cal Re4d5]} Bb7 {[%emt 0:07:00]} 13. Rhe1 {[%emt 0:01:17]} Qc7 {[%emt 0:01:58]} 14. Bb3 {[%emt 0:03:47][%cal Re4d5] [#] White is more active.} O-O-O $146 {[%emt 0:08:41]} (14... Qxh2 $2 15. g3 O-O-O 16. Rh1 $18) (14... O-O $14 {might be stronger.}) ({Predecessor:} 14... Rg8 15. g3 Kf8 16. f4 a5 17. f5 Rg5 18. Kb1 Rd8 19. fxe6 fxe6 20. exd5 exd5 {½-½ (80) Hovhannisyan,R (2650)-G,A (2394) Riga 2019}) 15. exd5 $16 {[%emt 0:16:49]} Bd6 {[%emt 0:00:35]} 16. Qh3 $1 {[%emt 0:00:22]} (16. dxe6 $2 Bf4 17. exf7 (17. Rxd8+ $2 Rxd8 18. exf7 Bxe3+ $19) 17... Bxe3+ $19) 16... cxd5 {[%emt 0:00:31]} 17. Bxd5 {[%emt 0:00:56]} Be5 {[%emt 0:00:30]} 18. Bxb7+ {[%emt 0:01:08]} Qxb7 {[%emt 0:01:03]} 19. Rd3 {[%emt 0:03:04]} Rxd3 {[%emt 0:00:31]} 20. Qxd3 {[%emt 0:02:06]} Rd8 {[%emt 0:02:06]} 21. Qc4+ {[%emt 0:09:34]} Kb8 {[%emt 0:00:04]} 22. Qb3 {[%emt 0:00:19]} h5 {[%emt 0:03:51]} 23. g3 {[%emt 0:02:55]} h4 {[%emt 0:00:24]} 24. Qxb7+ {[%emt 0:03:25]} (24. gxh4 Bf4+ 25. Kb1 Qxb3 26. axb3 Rh8 $14) 24... Kxb7 {[%emt 0:00:04][%mdl 4096] Endgame KRB-KRN} 25. Ne4 {[%emt 0:00:43]} (25. gxh4 $6 Rh8 $14) 25... Kc6 {[%emt 0:00:45]} 26. f4 {[%emt 0:07:36]} (26. gxh4 $6 Rb8 $11) 26... Bd4 {[%emt 0:00:08]} 27. c3 {[%emt 0:01:26]} (27. gxh4 Rh8 $14) 27... Bb6 {[%emt 0:00:05]} 28. Re2 {[%emt 0:08:41]} ({Don't play} 28. gxh4 $6 Rh8 $11) 28... hxg3 {[%emt 0:01:02]} 29. hxg3 {[%emt 0:00:09]} (29. Nxf6 $6 gxh2 30. Rxh2 Be3+ 31. Kc2 Bxf4 $11) 29... Rg8 {[%emt 0:00:19]} 30. Kc2 {[%emt 0:01:25]} ({Of course not} 30. Nxf6 Rxg3 31. Re4 Rg2 $11) 30... Rg4 {[%emt 0:03:49]} 31. b4 {[%emt 0:02:55][%cal Bb2b4,Bb4b5][%mdl 32]} ({Don't do} 31. Nxf6 Rxg3 32. Re4 Rg2+ 33. Kb3 a5 $14) 31... f5 {[%emt 0:18:44]} 32. Ng5 {[%emt 0:00:59]} Rxg3 {[%emt 0:00:04]} 33. Nxf7 {[%emt 0:00:36]} Be3 {[%emt 0:00:05] [#]} 34. c4 {[%emt 0:06:21]} (34. Re1 $1 $16) 34... Kc7 {[%emt 0:04:35]} (34... a5 $11 {keeps the balance.}) 35. c5 {[%emt 0:05:35]} a5 {[%emt 0:00:30] [#]} 36. b5 {[%emt 0:00:30] b6+ is the strong threat.} Bxc5 {[%emt 0:00:30]} 37. Rxe6 {[%emt 0:00:30] Threatens to win with Rc6+.} Be3 {[%emt 0:00:30]} 38. Rc6+ {[%emt 0:00:30]} Kb8 {[%emt 0:00:30]} 39. Rc4 {[%emt 0:00:30]} Rf3 {[%emt 0:00:30]} 40. Nd6 {[%emt 0:00:30]} Bxf4 {[%emt 0:00:30]} 41. Nxf5 {[%emt 0:00:30]} Rf2+ {[%emt 0:00:30]} 42. Kb3 {[%emt 0:00:30]} Be5 {[%emt 0:00:30]} 43. Ne7 {[%emt 0:00:30]} (43. Nd4 $16 {aiming for Nc6+.} Kb7 44. a4) 43... Rb2+ $11 {[%emt 0:00:30]} 44. Ka3 {[%emt 0:00:30] And now Nc6+ would win.} Kb7 {[%emt 0:00:30] Weighted Error Value: White=0.08 (flawless) /Black=0.09 (flawless)} 1/2-1/2

[Event "5th Sharjah Masters 2022"]
[Site "Sharjah"]
[Date "2022.05.23"]
[Round "3.34"]
[White "Aditya Mittal"]
[Black "Erdogdu, Mert"]
[Result "0-1"]
[ECO "D30"]
[WhiteElo "2490"]
[BlackElo "2407"]
[Annotator "TA"]
[PlyCount "100"]
[EventDate "2022.05.21"]
[EventType "swiss"]
[EventCountry "UAE"]
[SourceTitle "playchess.com"]
[Source "ChessBase"]
[SourceQuality "1"]
[TimeControl "5400+30"]

{[%evp 16,100,36,20,31,21,22,22,20,19,26,18,60,59,58,58,80,82,94,85,85,86,84,100,93,102,100,62,72,62,62,58,60,56,72,47,50,35,92,77,279,256,257,266,349,41,44,40,37,0,58,29,38,33,33,0,0,-8,-8,-72,-69,-153,-176,-181,-108,-109,0,-201,-142,-401,-391,-486,-295,-622,-627,-772,-763,-29976,-29977,-29979,-29974,-29991,-29977,-29973,-29973,-29978,-29979]} 1. d4 {[%emt 0:00:06]} d5 {[%emt 0:00:09]} 2. c4 {[%emt 0:00:03]} e6 {[%emt 0:00:05]} 3. Nf3 {[%emt 0:00:04]} c5 {[%emt 0:00:09]} 4. cxd5 {[%emt 0:00:05]} exd5 {[%emt 0:00:05]} 5. g3 {[%emt 0:00:39]} Nf6 {[%emt 0:00:41]} 6. Bg2 {[%emt 0:00:05]} Nc6 {[%emt 0:00:11]} 7. O-O {[%emt 0:00:04]} Be7 {[%emt 0:00:03]} 8. dxc5 {[%emt 0:00:04]} Bxc5 {[%emt 0:00:05]} 9. a3 {[%emt 0:00:06]} Ne4 {[%emt 0:01:32] D30: Queen's Gambit Declined: Systems without Nc3.} 10. Nfd2 {[%emt 0:00:04]} f5 {[%emt 0:00:05]} 11. Nc3 {[%emt 0:00:04] White wants to play Nb3.} Be6 {[%emt 0:04:24] [#] The position is equal.} 12. Nf3 $146 {[%emt 0:00:31]} ({Predecessor:} 12. e3 O-O 13. Nb3 Bb6 14. Ne2 Qf6 15. Nbd4 Bf7 16. Kh1 Rac8 17. b3 Bh5 18. f3 Nxd4 19. Nxd4 {0-1 (31) Postny,E (2605)-Shlyakhtenko,R (2370) Chess.com INT 2020}) 12... O-O {[%emt 0:03:16]} 13. Bf4 {[%emt 0:00:08]} Qd7 {[%emt 1:26:15]} 14. Rc1 {[%emt 0:02:49]} Bb6 {[%emt 0:00:00]} 15. Na4 {[%emt 0:04:25]} d4 {[%emt 0:00:00]} 16. b4 {[%emt 0:22:25]} Rad8 {[%emt 0:00:00]} 17. b5 {[%emt 0:22:59]} Na5 {[%emt 0:00:00]} 18. Nxb6 {[%emt 0:00:38]} axb6 {[%emt 0:00:00]} 19. Rc7 {[%emt 0:01:21]} Qxb5 {[%emt 0:00:00]} 20. Nxd4 {[%emt 0:02:59]} Qd5 {[%emt 0:00:00]} 21. e3 {[%emt 0:04:32]} Nc6 {[%emt 0:00:00]} 22. Qa1 $36 {[%emt 0:05:19][%mdl 2048] White has some pressure.} Nxd4 {[%emt 0:00:00]} 23. exd4 {[%emt 0:00:06]} Rf7 {[%emt 0:00:00]} 24. Rxf7 {[%emt 0:09:56]} Kxf7 {[%emt 0:00:00]} 25. Bc7 {[%emt 0:00:45][%cal Bf4c7,Bc7b6,Bb6c5][%mdl 32] A strong pair of Bishops.} Rc8 {[%emt 0:00:00]} 26. Bxb6 {[%emt 0:01:08][%cal Ob6c5]} Rc2 {[%emt 0:00:00]} (26... Qc6 $14 27. Qb1 g6) 27. Qd1 $16 {[%emt 0:00:32]} Rb2 {[%emt 0:00:00]} (27... Rc8 $16) 28. Qh5+ $18 {[%emt 0:01:34]} Kf6 {[%emt 0:00:00]} 29. Bc5 {[%emt 0:12:21]} h6 {[%emt 0:01:37]} 30. Qe8 $2 {[%emt 0:02:15]} (30. g4 $18) 30... Qd7 $14 {[%emt 0:01:33]} 31. Qb8 {[%emt 0:03:14]} Kg6 {[%emt 0:01:24]} 32. Qe5 {[%emt 0:01:15]} Bd5 {[%emt 0:00:16]} ({Black should try} 32... Bc4 $1 $11) 33. g4 {[%emt 0:00:48]} Nf6 {[%emt 0:01:25]} 34. Bxd5 {[%emt 0:03:07]} Nxd5 {[%emt 0:00:09]} 35. h4 {[%emt 0:00:47]} (35. Bd6 $5 {[%cal Re5d5]} Qf7 36. gxf5+ Qxf5 37. Qxf5+ Kxf5 38. Re1 $14) 35... fxg4 {[%emt 0:01:20]} 36. Re1 {[%emt 0:00:17] h5+ is the strong threat.} Nf6 {[%emt 0:01:24] Prevents h5+.} 37. d5 {[%emt 0:00:30]} (37. Bb4 $11 {remains equal.}) 37... Rb5 $1 $17 {[%emt 0:00:11]} 38. Be7 {[%emt 0:00:50]} (38. Qd4 $15 Qxd5 39. Qxd5 Nxd5 40. Bd4) 38... Rxd5 {[%emt 0:00:28]} ({Don't play} 38... Qxd5 39. Bxf6 Qc6 40. h5+ Kh7 41. Qe2 Rxh5 42. Qd3+ Kg8 43. Bh4 $1 $18 {[%mdl 512]}) 39. Qe3 {[%emt 0:00:20]} Rd3 {[%emt 0:02:23]} (39... b5 $19 40. Qe6 Qxe6 41. Rxe6 Kf5) 40. Qe5 {[%emt 0:00:05]} Rd5 {[%emt 0:00:41]} (40... Rh3 $17 {aiming for ...Qc6.} 41. Qe6 (41. Bxf6 $2 gxf6 42. Qf4 b5 $19) 41... Qxe6 42. Rxe6 Kf7) 41. Qe2 $2 {[%emt 0:00:17]} (41. Qe3 $1 $11 {and White has nothing to worry.}) 41... b5 {[%emt 0:00:10]} 42. Bxf6 $4 {[%emt 0:00:33][%mdl 8192]} (42. Qe3 $17) 42... gxf6 {[%emt 0:00:05][%mdl 4096] Endgame KQR-KQR} 43. Qe4+ {[%emt 0:00:18] [#]} Kh5 $1 {[%emt 0:00:26]} 44. Qf4 $2 {[%emt 0:01:16]} (44. f3) 44... Qf5 $19 {[%emt 0:00:15]} 45. Qc1 {[%emt 0:00:35]} Rd3 {[%emt 0:00:20] Strongly threatening ...g3.} 46. Re7 {[%emt 0:00:37]} g3 {[%emt 0:00:37] Black mates.} 47. Qf1 {[%emt 0:00:32]} Qf3 {[%emt 0:01:04]} 48. Re1 {[%emt 0:00:31]} gxf2+ 49. Qxf2 {[%emt 0:00:02]} Qg4+ {[%emt 0:00:17]} 50. Qg2 {[%emt 0:00:40]} Rg3 {[%emt 0:00:05] Quite a comeback for Black.  Weighted Error Value: White=0.68/Black=0.24 (precise)} 0-1

[Event "5th Sharjah Masters 2022"]
[Site "Sharjah"]
[Date "2022.05.23"]
[Round "3.35"]
[White "Vogt, Lothar"]
[Black "Jumabayev, Rinat"]
[Result "0-1"]
[ECO "B70"]
[WhiteElo "2365"]
[BlackElo "2628"]
[Annotator "TA"]
[PlyCount "48"]
[EventDate "2022.05.21"]
[EventType "swiss"]
[EventCountry "UAE"]
[SourceTitle "playchess.com"]
[Source "ChessBase"]
[SourceQuality "1"]
[TimeControl "5400+30"]

{[%evp 16,48,0,0,7,0,0,0,0,0,0,-7,0,0,12,-9,0,-18,-16,-19,-13,0,0,-13,-7,-225,-218,-227,-218,-210,-210,-316,-329,-266,-265]} 1. e4 {[%emt 0:00:04]} c5 {[%emt 0:00:03]} 2. Nc3 {[%emt 0:00:32]} d6 {[%emt 0:03:04]} 3. Nge2 {[%emt 0:00:59]} Nc6 {[%emt 0:00:33]} 4. g3 {[%emt 0:03:18]} g6 {[%emt 0:00:40]} 5. d4 {[%emt 0:00:34]} cxd4 {[%emt 0:00:14]} 6. Nxd4 {[%emt 0:00:02]} Bg7 {[%emt 0:00:16]} 7. Nb3 {[%emt 0:01:40]} Nf6 {[%emt 0:14:40]} 8. Bg2 {[%emt 0:00:09]} O-O {[%emt 0:00:05]} 9. O-O {[%emt 0:00:16]} a6 {[%emt 0:00:27][%cal Ba7a6,Ba6b5,Bb5b4][%mdl 32] B70: Sicilian Dragon: 6 g3 and 6 Be2 (without a later Be3).} 10. h3 {[%emt 0:04:45]} Rb8 $5 {[%emt 0:08:20][%mdl 4] Leaves trodden paths.} 11. a4 {[%emt 0:01:30]} b5 {[%emt 0:03:32] The position is equal.} 12. axb5 {[%emt 0:00:21]} axb5 {[%emt 0:00:02] [#]} 13. Bg5 $146 {[%emt 0:11:10]} ({Predecessor:} 13. Nd5 Nd7 14. c3 Nde5 15. Nd4 Bd7 16. Nxc6 Bxc6 17. Nb4 Bb7 18. Qe2 Qd7 19. Rd1 {1-0 (53) Onischuk,V (2633)-Vidit,S (2726) Chess.com INT 2020}) 13... b4 {[%emt 0:05:57]} 14. Nd5 {[%emt 0:01:28]} Nd7 {[%emt 0:00:15]} 15. Ra2 {[%emt 0:04:49][%cal Ob3a5]} (15. Na5 {feels hotter.} Nde5 16. f4 Rb5 17. Nb3) 15... h6 $36 {[%emt 0:01:34][%mdl 2048] Black fights for an advantage.} 16. Be3 {[%emt 0:01:07]} e6 {[%emt 0:02:24]} 17. Nf4 {[%emt 0:00:15]} Nb6 {[%emt 0:00:22]} 18. Qe2 {[%emt 0:05:16]} Qc7 {[%emt 0:04:20]} 19. Rd1 {[%emt 0:03:55]} Bd7 {[%emt 0:03:56]} 20. Nd4 $2 {[%emt 0:04:01] White does not recover from this.} (20. Rda1 $11 {and White has nothing to worry.}) 20... Nxd4 $19 {[%emt 0:07:26]} 21. Bxd4 {[%emt 0:00:23]} Bxd4 {[%emt 0:00:05]} 22. Rxd4 {[%emt 0:00:16] [#]} e5 $1 {[%emt 0:00:56][%csl LRd4,LRf4]} 23. Nd5 {[%emt 0:00:10]} (23. Rxb4 {was called for.} exf4 24. gxf4) 23... Nxd5 {[%emt 0:00:05]} 24. Rxd5 {[%emt 0:00:11]} Be6 {[%emt 0:00:08] Weighted Error Value: White=0.47/Black=0.02 (flawless)} 0-1

[Event "5th Sharjah Masters 2022"]
[Site "Sharjah"]
[Date "2022.05.23"]
[Round "3.36"]
[White "Mastrovasilis, Dimitrios"]
[Black "Saeed, Ishaq"]
[Result "1-0"]
[ECO "C84"]
[WhiteElo "2613"]
[BlackElo "2397"]
[Annotator "TA"]
[PlyCount "151"]
[EventDate "2022.05.21"]
[EventType "swiss"]
[EventCountry "UAE"]
[SourceTitle "playchess.com"]
[Source "ChessBase"]
[SourceQuality "1"]
[TimeControl "5400+30"]

{[%evp 15,151,16,13,19,18,0,8,12,20,12,7,14,14,14,12,25,19,0,0,-23,0,0,0,3,21,9,2,12,24,28,39,31,31,17,11,2,101,104,184,192,198,198,197,160,185,91,121,122,114,115,197,200,297,255,247,245,266,249,219,158,176,175,191,191,295,296,463,456,467,467,485,458,456,431,416,376,409,409,409,409,489,487,489,410,583,518,683,619,702,596,820,805,759,687,584,395,5476,4133,2575,1810,1293,1075,1011,801,788,783,788,635,2416,2235,29967,29968,29972,29972,6103,1952,1554,776,1973,1899,1178,991,6326,3173,29986,29987,29987,29988,29988,29989,29989,29990,29990,29986,29986,29987,29987,29988]} 1. e4 {[%emt 0:00:04]} e5 {[%emt 0:02:45]} 2. Nf3 {[%emt 0:00:08]} Nc6 {[%emt 0:00:08]} 3. Bb5 {[%emt 0:00:17]} a6 {[%emt 0:00:10]} 4. Ba4 {[%emt 0:00:23]} Nf6 {[%emt 0:00:10]} 5. Nc3 {[%emt 0:00:16]} b5 {[%emt 0:10:43]} 6. Bb3 {[%emt 0:00:09]} Be7 {[%emt 0:00:04]} 7. O-O {[%emt 0:01:07] 7.a4 gains popularity.} Bb7 {[%emt 0:00:26]} 8. d3 {[%emt 0:02:08]} O-O {[%emt 0:01:35]} 9. a3 {[%emt 0:05:23] C84: Closed Ruy Lopez: Unusual White 6th moves.} Nd4 {[%emt 0:02:35]} 10. Nxd4 {[%emt 0:17:58]} exd4 {[%emt 0:00:40]} 11. Ne2 {[%emt 0:00:30] The position is equal.} c5 {[%emt 0:04:18]} 12. Ng3 {[%emt 0:00:25]} d5 {[%emt 0:01:56][%cal Rd5e4]} 13. e5 {[%emt 0:00:36]} Nd7 {[%emt 0:01:40]} 14. f4 {[%emt 0:01:59]} c4 {[%emt 0:00:35]} 15. Ba2 {[%emt 0:00:09]} f5 {[%emt 0:01:42] [#]} 16. Kh1 $146 {[%emt 0:04:07]} ({Predecessor:} 16. Ne2 Bc5 17. Kh1 Nb8 18. Bd2 Nc6 19. Be1 Bc8 20. Rf3 Qe7 21. Bf2 Be6 22. Qg1 {½-½ (65) Pepene,I (2418)-Rombaldoni,D (2406) ICCF email 2018}) 16... Nc5 {[%emt 0:08:01]} 17. Qf3 {[%emt 0:04:41]} (17. Ne2 $5 {[%cal Re2d4]}) 17... Qb6 {[%emt 0:15:54]} 18. Ne2 {[%emt 0:01:08]} Ne6 {[%emt 0:00:36]} 19. Qf2 {[%emt 0:10:24]} Rac8 {[%emt 0:04:27]} 20. b4 {[%emt 0:11:15]} a5 {[%emt 0:31:57]} 21. c3 {[%emt 0:02:44][%cal Re2d4]} axb4 {[%emt 0:00:47]} 22. axb4 {[%emt 0:00:03][%cal Re2d4]} cxd3 {[%emt 0:08:45]} 23. Nxd4 {[%emt 0:00:26] aiming for Be3.} Rxc3 {[%emt 0:00:05]} (23... Nxd4 $2 24. Be3 $18) 24. Be3 {[%emt 0:01:24][%cal Od4f5]} Kh8 $1 {[%emt 0:01:58]} 25. Nxf5 {[%emt 0:06:22]} Qd8 {[%emt 0:00:06]} (25... d4 $1 $11 {keeps the balance.} 26. Nxd4 Bh4 27. Nxe6 (27. Qxh4 Nxd4 28. Rac1 Rxc1 $11) 27... Bxf2 28. Bxb6 Bxb6 29. Nxf8 Rc2) 26. Nd4 {[%emt 0:01:35]} Nxd4 {[%emt 0:00:34]} (26... Bc8 $16) 27. Bxd4 $18 {[%emt 0:00:07]} Rc2 {[%emt 0:00:40]} 28. Qg3 {[%emt 0:03:56]} Bc8 {[%emt 0:00:05]} 29. Bb3 {[%emt 0:06:00]} (29. Qxd3 $6 Bf5 30. Qe3 (30. Qxb5 Be4 $11) 30... Be4 $16) 29... Rc4 {[%emt 0:01:01]} 30. Qxd3 {[%emt 0:02:14]} (30. Bxc4 $18 dxc4 31. Bc3 (31. Ra7 Qxd4 32. Rxe7 Rg8 $17)) 30... Bf5 $16 {[%emt 0:00:09]} 31. Qe3 {[%emt 0:00:45]} Rxb4 {[%emt 0:00:09]} 32. Ra7 {[%emt 0:01:03][%cal Ba1a7,Ba7c7,Bc7d7][%mdl 32] White is more active.} Re8 {[%emt 0:00:27]} (32... Be4 $16 {keeps fighting.}) 33. Qc3 $18 {[%emt 0:06:57]} Be4 {[%emt 0:01:19]} (33... h6 $142 34. e6 Rxd4 35. Qxd4 Bxe6) 34. e6 {[%emt 0:01:03]} Rxd4 {[%emt 0:00:26]} 35. Qxd4 {[%emt 0:00:10]} Bf6 {[%emt 0:00:15]} 36. Qc5 {[%emt 0:02:28]} Rxe6 {[%emt 0:00:27]} 37. Rc7 {[%emt 0:02:29] And now Rc8 would win.} (37. Qxb5 Re8 38. Rd7 Qc8) 37... Re8 {[%emt 0:00:42][%cal Ob5b4] [#]} 38. Rc1 $1 $36 {[%emt 0:00:33][%mdl 2048] Keeping Black busy.} ({Don't take} 38. Qxb5 $6 Bd3 39. Qxd3 Qxc7 $16) 38... h6 {[%emt 0:00:40]} 39. Qxb5 {[%emt 0:01:57]} Kh7 {[%emt 0:00:31]} (39... Qa8 $142 40. Bc2 d4 41. Bxe4 Qxe4) 40. Rd7 {[%emt 0:02:18]} Qa8 {[%emt 0:00:28]} (40... Qb8 $142 41. Qxb8 Rxb8 42. Bxd5 Bf5) 41. Bxd5 {[%emt 0:00:29]} Bxd5 {[%emt 0:00:32]} 42. Qxd5 {[%emt 0:00:07]} ({Less strong is} 42. Rxd5 Rf8 43. Qc4 Bb2 $18) 42... Qa3 {[%emt 0:00:30]} 43. Qd3+ {[%emt 0:00:29]} Qxd3 {[%emt 0:00:05]} 44. Rxd3 {[%emt 0:00:04][%mdl 4096] Endgame KRR-KRB} Re4 {[%emt 0:00:22]} 45. Rf3 {[%emt 0:01:37]} Ra4 {[%emt 0:00:20]} 46. Rf2 {[%emt 0:00:38]} Bd4 {[%emt 0:00:14]} 47. Re2 {[%emt 0:00:02]} Bf6 {[%emt 0:00:07]} 48. g3 {[%emt 0:00:08]} Ra3 {[%emt 0:00:05]} 49. Kg2 {[%emt 0:00:08]} Rb3 {[%emt 0:00:03]} (49... Ra5 {is a better defense.} 50. Rc6 Ra3) 50. Rc5 {[%emt 0:00:26]} Ra3 {[%emt 0:00:07]} 51. Kh3 {[%emt 0:00:50]} Rb3 {[%emt 0:00:07]} 52. Rd5 {[%emt 0:00:15]} Ra3 {[%emt 0:00:07]} 53. Kg4 {[%emt 0:00:23]} Kg6 {[%emt 0:00:08]} 54. Red2 {[%emt 0:01:32]} Rb3 {[%emt 0:00:08]} 55. h4 {[%emt 0:01:15][%cal Bh2h4,Bh4h5][%mdl 32]} Ra3 $2 {[%emt 0:00:24]} (55... h5+ 56. Kh3 Be7) 56. h5+ {[%emt 0:00:39]} Kh7 {[%emt 0:00:17]} 57. R2d3 {[%emt 0:00:09]} Ra8 {[%emt 0:00:16]} 58. Kf5 {[%emt 0:00:28]} Rf8 {[%emt 0:00:06]} 59. Ke4 {[%emt 0:00:42]} Re8+ {[%emt 0:00:18]} 60. Kf3 {[%emt 0:00:02]} Rf8 {[%emt 0:00:26]} 61. Rb3 {[%emt 0:00:16] Black must now prevent Kg4.} Rf7 {[%emt 0:00:32]} 62. Rdb5 {[%emt 0:00:55] Intending Rb7 and mate.} Rd7 {[%emt 0:00:24]} 63. Rb8 {[%emt 0:00:26]} Rc7 {[%emt 0:02:36]} 64. Kg4 {[%emt 0:00:36]} Bd4 {[%emt 0:00:18]} 65. Rd3 {[%emt 0:00:36]} (65. R3b7 $142 Rc3 66. Rd8) 65... Bf6 {[%emt 0:00:21]} 66. Ra8 {[%emt 0:01:25]} (66. Rd6 $142 Bc3 67. Rdd8) 66... Rb7 {[%emt 0:00:39]} 67. Rda3 {[%emt 0:00:24] Hoping for R3a7.} Bd4 {[%emt 0:00:30] Prevents R3a7.} 68. Rc8 {[%emt 0:00:53]} Bf6 {[%emt 0:02:30]} 69. f5 {[%emt 0:00:31] Threatening mate with Raa8.} Rb4+ {[%emt 0:00:34]} 70. Kh3 {[%emt 0:00:17] White mates.} Be7 {[%emt 0:01:52]} 71. Raa8 {[%emt 0:00:42][%csl Ga8][%cal Rc8h8]} g5 {[%emt 0:00:27]} 72. hxg6+ {[%emt 0:00:29]} Kg7 {[%emt 0:00:06]} 73. Rc7 {[%emt 0:00:17]} Re4 {[%emt 0:00:55]} 74. Re8 {[%emt 0:00:27]} Kf6 {[%emt 0:00:10] [#]} 75. Rexe7 $1 {[%emt 0:00:17]} Rxe7 {[%emt 0:00:07]} 76. Rxe7 {[%emt 0:00:07] Weighted Error Value: White=0.16 (very precise) /Black=0.30} 1-0